bitfinex/quotes_ETHUSD_20250424
["timestamp","ask_amount","ask_price","bid_price","bid_amount"]
[1745513857227,5.6335049,1775.1,1774.8,0.7809]
[1745513857912,5.6335049,1775.1,1774.9,0.52101]
[1745513858113,5.63332086,1775.2,1774.9,0.52101]
[1745513858312,11.26678811,1775.2,1774.9,0.52101]
[1745513858534,5.63350292,1775.1,1774.8,0.7809]
[1745513859246,11.26727415,1775.1,1774.8,0.7809]
[1745513859550,5.63383103,1775.0,1774.8,0.7809]
[1745513859843,5.63350292,1775.1,1774.6,11.32957028]
[1745513860149,5.63391675,1775.0,1774.9,0.52101327]
[1745513860324,5.63380281,1775.0,1774.9,0.52101327]
[1745513860950,5.63459055,1774.8,1774.4,6.44721291]
[1745513861470,5.63459055,1774.8,1774.5,0.52129542]
[1745513861856,5.63424611,1774.9,1774.6,0.52129542]
[1745513862245,5.63424611,1774.9,1774.7,0.52129542]
[1745513862630,5.63424611,1774.9,1774.6,0.52129542]
[1745513863161,5.63424611,1774.9,1774.7,0.52129542]
[1745513863359,5.63424611,1774.9,1774.6,0.52129542]
[1745513863839,5.63424611,1774.9,1774.7,0.52129542]
[1745513864667,5.63424611,1774.9,1774.8,0.52129542]
[1745513865174,5.63424611,1774.9,1774.6,0.52129542]
[1745513865390,5.63325553,1775.2,1774.8,5.63433847]
[1745513865391,5.63333397,1775.2,1774.8,5.63433847]
[1745513865549,5.63333397,1775.2,1774.8,5.63425281]
[1745513865889,5.63333397,1775.2,1774.9,0.52129542]
[1745513866243,6.40909023,1775.3,1774.9,6.15537055]
[1745513866443,5.6331733,1775.2,1774.9,6.15537055]
[1745513866673,5.6331733,1775.2,1775.0,0.52129542]
[1745513867355,5.6331733,1775.2,1774.9,5.63407513]
[1745513867875,5.6331733,1775.2,1774.8,5.63423338]
[1745513868088,12.04218126,1775.3,1774.9,5.63400803]
[1745513868445,12.04218126,1775.3,1775.0,0.52106391]
[1745513868671,5.63321271,1775.2,1775.0,0.52106391]
[1745513868872,12.04223103,1775.3,1774.9,5.63410266]
[1745513869093,6.40909023,1775.3,1774.9,5.63410266]
[1745513869248,6.40909023,1775.3,1774.9,6.9299478]
[1745513869803,6.40909023,1775.3,1775.0,0.52102622]
[1745513870278,6.40909023,1775.3,1774.9,6.9299478]
[1745513870673,6.40909023,1775.3,1774.9,1.29584514]
[1745513871091,5.63325823,1775.2,1775.0,0.52122534]
[1745513872050,5.63325823,1775.2,1774.8,1.6901388]
[1745513872281,5.63325823,1775.2,1774.8,7.32440797]
[1745513872684,0.7761,1775.3,1774.8,1.6901388]
[1745513872907,5.63454576,1774.8,1774.4,5.63557392]
[1745513873106,5.63454576,1774.8,1774.3,6.40203216]
[1745513873284,5.63484626,1774.7,1774.3,6.40199911]
[1745513873610,5.63484626,1774.7,1774.4,0.52195283]
[1745513874408,5.63484626,1774.7,1774.5,0.52195283]
[1745513874607,5.63484626,1774.7,1774.6,0.52195283]
[1745513878111,5.63475516,1774.7,1774.6,0.52195283]
[1745513880437,6.84240525,1774.7,1774.6,0.52195283]
[1745513880942,5.63511136,1774.6,1774.3,0.7662]
[1745513881509,5.63475516,1774.7,1774.4,0.52209927]
[1745513881820,11.26977652,1774.7,1774.4,0.52209927]
[1745513882132,5.63475516,1774.7,1774.4,0.52209927]
[1745513882336,11.2697439,1774.7,1774.5,0.52209927]
[1745513882517,11.2697439,1774.7,1774.3,6.40221805]
[1745513883140,11.26981135,1774.7,1774.3,6.40221805]
[1745513883305,11.26981135,1774.7,1774.4,0.52195445]
[1745513883503,5.63508954,1774.6,1774.4,0.52195445]
[1745513883703,5.63508954,1774.6,1774.5,0.52195445]
[1745513885945,5.63475516,1774.7,1774.5,0.52195445]
[1745513886347,5.6350853,1774.6,1774.3,6.40218955]
[1745513886649,5.6350853,1774.6,1774.3,8.19412475]
[1745513887043,5.6350853,1774.6,1774.4,0.52221423]
[1745513887710,5.6350853,1774.6,1774.5,0.52221423]
[1745513887906,6.3861853,1774.6,1774.5,0.52221423]
[1745513888120,0.81,1774.5,1774.0,6.45642119]
[1745513888321,5.63582702,1774.4,1774.0,7.66578024]
[1745513888621,5.63582702,1774.4,1774.1,0.52230274]
[1745513889139,6.44551098,1774.5,1774.1,6.15895585]
[1745513889303,6.44551098,1774.5,1774.2,0.52230274]
[1745513889707,6.44551098,1774.5,1774.1,5.63665311]
[1745513889908,6.44551098,1774.5,1774.1,6.96688083]
[1745513890647,6.44551098,1774.5,1774.2,0.52212915]
[1745513891055,8.92907023,1774.7,1774.3,5.63589939]
[1745513891348,0.7773,1774.7,1774.4,5.63547848]
[1745513891646,0.7773,1774.7,1774.5,5.63527184]
[1745513891848,11.34069616,1774.9,1774.5,6.15740099]
[1745513892335,5.6345631,1774.8,1774.6,0.52212915]
[1745513892536,11.3255399,1774.8,1774.6,0.52212915]
[1745513892712,5.69082745,1774.8,1774.6,0.52212915]
[1745513892907,5.69082745,1774.8,1774.5,1.17929357]
[1745513893112,9.46055052,1774.9,1774.5,5.6352505]
[1745513893311,5.63456966,1774.8,1774.4,5.63556196]
[1745513893554,5.63456966,1774.8,1774.3,6.45005133]
[1745513893851,5.63456966,1774.8,1774.5,0.5217399]
[1745513894160,5.63485615,1774.7,1774.5,0.5217399]
[1745513894324,5.63485615,1774.7,1774.3,12.08585443]
[1745513894511,5.63485615,1774.7,1774.3,13.3943437]
[1745513894822,5.63485615,1774.7,1774.4,0.52180092]
[1745513895153,5.63485615,1774.7,1774.4,6.1574817]
[1745513895337,5.63456966,1774.8,1774.5,0.52180092]
[1745513895647,11.26929733,1774.8,1774.5,0.52180092]
[1745513895835,5.63456966,1774.8,1774.5,0.52180092]
[1745513896037,11.26924825,1774.8,1774.5,0.52180092]
[1745513896653,5.63494035,1774.7,1774.3,13.39431176]
[1745513897011,11.26930616,1774.8,1774.4,5.63567117]
[1745513897344,3.8264,1774.9,1774.3,7.75848855]
[1745513897345,5.63489558,1774.7,1774.3,7.75848855]
[1745513897531,5.63507951,1774.6,1774.4,0.52214368]
[1745513897939,5.63507951,1774.6,1774.5,0.52214368]
[1745513898122,6.46649558,1774.7,1774.5,0.52214368]
[1745513898449,7.67660746,1774.7,1774.5,0.52214368]
[1745513898655,7.67660746,1774.7,1774.4,0.52214368]
[1745513898955,7.67660746,1774.7,1774.5,0.52214368]
[1745513899169,5.63507269,1774.6,1774.5,0.52214368]
[1745513899660,8.69133704,1774.6,1774.5,0.52214368]
[1745513899826,8.69133704,1774.6,1774.0,5.63684516]
[1745513899827,5.63539025,1774.5,1774.4,0.52214368]
[1745513900281,5.63631254,1774.3,1774.0,0.52214368]
[1745513900579,6.43753995,1774.2,1774.0,0.52214368]
[1745513900881,6.43753995,1774.2,1774.1,0.52214368]
[1745513901666,0.8009,1774.2,1774.1,0.52214368]
[1745513901839,6.43724314,1774.2,1774.1,0.52214368]
[1745513902143,7.64458625,1774.2,1774.1,0.52214368]
[1745513903043,2.00824311,1774.2,1774.1,0.52214368]
[1745513903352,6.43724314,1774.2,1774.1,0.52214368]
[1745513904435,6.43724314,1774.2,1773.9,0.52214368]
[1745513904635,12.07384011,1774.2,1773.9,0.52214368]
[1745513904835,6.43724314,1774.2,1773.9,0.52214368]
[1745513905142,12.07385172,1774.2,1774.0,0.52214368]
[1745513905354,5.63666084,1774.1,1774.0,0.52214368]
[1745513906164,5.63666084,1774.1,1773.9,0.52214368]
[1745513906363,11.27356023,1774.1,1773.9,0.52214368]
[1745513906570,5.63697857,1774.0,1773.9,0.52214368]
[1745513906785,5.63697857,1774.0,1773.8,0.52214368]
[1745513907256,5.63697857,1774.0,1773.7,0.52214368]
[1745513908078,6.84425208,1774.1,1773.8,0.52214368]
[1745513908468,6.84425208,1774.1,1773.7,5.63782211]
[1745513909182,6.84425208,1774.1,1773.8,0.52202253]
[1745513909558,6.84425208,1774.1,1773.7,5.63782211]
[1745513910885,12.48118957,1774.1,1773.8,0.52199412]
[1745513911085,6.84425208,1774.1,1773.8,0.52199412]
[1745513911448,6.84425208,1774.1,1773.7,5.63782211]
[1745513911743,12.48117168,1774.1,1773.7,5.63782211]
[1745513911948,6.84425208,1774.1,1773.7,5.63782211]
[1745513912181,6.84425208,1774.1,1773.8,5.63760929]
[1745513912385,6.84425208,1774.1,1773.8,0.52187689]
[1745513912790,6.84425208,1774.1,1773.7,5.63772151]
[1745513913383,6.43736901,1774.2,1773.7,0.99903831]
[1745513913584,6.43736901,1774.2,1773.8,6.45176339]
[1745513913957,12.07395814,1774.2,1773.8,6.45176339]
[1745513914165,5.63667031,1774.1,1773.8,6.45176339]
[1745513914498,5.63667031,1774.1,1773.8,0.8143]
[1745513915464,6.43736901,1774.2,1773.8,6.45176453]
[1745513915664,7.59861818,1774.2,1773.8,6.45176453]
[1745513915923,13.23521764,1774.2,1773.8,6.45176453]
[1745513916307,13.23519966,1774.2,1773.8,6.45176453]
[1745513916508,7.59861818,1774.2,1773.8,0.8143]
[1745513916715,5.63677974,1774.1,1773.8,0.8143]
[1745513917114,5.63677974,1774.1,1773.9,0.5222158]
[1745513917836,5.63677974,1774.1,1773.8,0.8143]
[1745513917993,5.63677974,1774.1,1773.8,6.451873]
[1745513918902,5.63677974,1774.1,1773.9,0.52212371]
[1745513919103,7.59861818,1774.2,1773.9,0.52212371]
[1745513919306,5.63666392,1774.1,1773.9,0.52212371]
[1745513919512,5.63666392,1774.1,1773.8,6.451873]
[1745513920307,13.23526673,1774.2,1773.8,6.451873]
[1745513920503,0.29412272,1774.3,1774.0,5.63679252]
[1745513920668,9.45069625,1774.5,1774.1,6.39464433]
[1745513920998,9.45069625,1774.5,1774.2,0.52206231]
[1745513921785,9.45069625,1774.5,1774.1,6.39463704]
[1745513922086,9.45069625,1774.5,1774.1,0.7582]
[1745513922287,6.58092407,1774.4,1774.1,6.39482233]
[1745513922526,0.94506963,1774.4,1774.1,6.39482233]
[1745513922814,8.63549625,1774.5,1774.2,0.52180561]
[1745513923420,14.27118234,1774.5,1774.1,6.39470971]
[1745513923735,8.63549625,1774.5,1774.1,6.39470971]
[1745513924019,14.27113484,1774.5,1774.1,6.39470971]
[1745513924222,14.27113484,1774.5,1774.2,0.52191963]
[1745513924386,15.78001832,1774.5,1774.1,6.39470971]
[1745513924818,5.63586211,1774.4,1774.1,0.7582]
[1745513925517,5.63586211,1774.4,1774.2,0.52234258]
[1745513925723,5.9516508,1774.4,1774.2,0.52234258]
[1745513926017,5.9516508,1774.4,1774.1,0.7582]
[1745513926018,5.63602547,1774.3,1774.1,0.7582]
[1745513926189,5.9516508,1774.4,1774.1,0.7582]
[1745513926384,5.63611723,1774.3,1774.1,0.7582]
[1745513926689,7.56125913,1774.4,1774.1,0.7582]
[1745513927218,12.88141797,1774.4,1774.2,0.52257044]
[1745513927426,7.24547044,1774.4,1774.2,0.52257044]
[1745513927920,12.88144123,1774.4,1774.1,0.7582]
[1745513928117,12.88146105,1774.4,1774.1,0.7582]
[1745513928421,5.63612429,1774.3,1774.1,0.7582]
[1745513929022,7.24547044,1774.4,1774.2,0.52312856]
[1745513929409,12.88144053,1774.4,1774.2,0.52312856]
[1745513929723,12.88144053,1774.4,1774.1,0.7582]
[1745513929922,5.63586211,1774.4,1774.1,0.7582]
[1745513930126,11.27182738,1774.4,1774.1,0.7582]
[1745513930344,11.27182738,1774.4,1774.2,0.52323193]
[1745513930489,5.63586211,1774.4,1774.2,0.52323193]
[1745513930686,5.63586211,1774.4,1774.1,0.7582]
[1745513931228,5.63616423,1774.3,1774.1,0.7582]
[1745513931591,5.63634314,1774.2,1774.1,0.7582]
[1745513931823,11.27245273,1774.3,1774.1,1.2814074]
[1745513931995,5.63616423,1774.3,1774.1,1.2814074]
[1745513932196,6.19978065,1774.3,1774.1,1.2814074]
[1745513932516,6.19978065,1774.3,1774.1,0.7582]
[1745513933230,6.19978065,1774.3,1774.2,0.52319862]
[1745513933692,6.5159628,1774.3,1774.2,0.52319862]
[1745513936945,6.51596416,1774.3,1774.2,0.52319862]
[1745513939550,7.32886416,1774.3,1774.2,0.52319862]
[1745513940045,6.51596416,1774.3,1774.2,0.52319862]
[1745513940249,6.51596416,1774.3,1774.0,0.7877]
[1745513940447,12.1522472,1774.3,1774.0,0.7877]
[1745513940650,6.51596416,1774.3,1774.1,0.52330583]
[1745513941149,0.31618351,1774.2,1774.0,0.7877]
[1745513942154,0.31618351,1774.2,1774.1,0.52340596]
[1745513945957,5.95252665,1774.2,1774.1,0.52340596]
[1745513946127,0.31618351,1774.2,1774.1,0.52340596]
[1745513949170,11.27249811,1774.3,1774.1,0.52340596]
[1745513949352,0.31654835,1774.2,1774.1,0.52340596]
[1745513949542,0.31654835,1774.2,1774.0,0.7877]
[1745513949749,0.31654835,1774.2,1774.1,0.52395573]
[1745513950559,5.95289149,1774.2,1774.1,0.52395573]
[1745513950759,6.70999149,1774.2,1774.1,0.52395573]
[1745513950965,8.07639685,1774.2,1774.1,0.52395573]
[1745513952870,13.03849417,1774.2,1774.1,0.52395573]
[1745513953070,12.98222982,1774.2,1774.1,0.52395573]
[1745513953432,5.63739937,1773.9,1773.6,0.7666]
[1745513954344,5.63739937,1773.9,1773.7,0.52427527]
[1745513954769,5.63739937,1773.9,1773.8,0.52427527]
[1745513954945,5.95384859,1773.9,1773.8,0.52427527]
[1745513955338,0.31644922,1773.9,1773.8,0.52427527]
[1745513955538,5.95374557,1773.9,1773.8,0.52427527]
[1745513957569,7.16908872,1773.9,1773.8,0.52427527]
[1745513957750,7.11282437,1773.9,1773.8,0.52427527]
[1745513962183,7.16908872,1773.9,1773.8,0.52427527]
[1745513962981,12.87342169,1773.9,1773.8,0.52427527]
[1745513963173,12.87342169,1773.9,1773.3,6.44838164]
[1745513963174,5.63841246,1773.6,1773.3,6.44838164]
[1745513963572,5.63841246,1773.6,1773.3,0.8092]
[1745513963768,5.63841246,1773.6,1773.4,0.52348032]
[1745513964085,5.63808177,1773.7,1773.4,0.52348032]
[1745513964284,6.76567052,1773.7,1773.5,0.52348032]
[1745513964646,6.76567052,1773.7,1773.6,0.52348032]
[1745513964884,12.85013086,1773.7,1773.6,0.52348032]
[1745513965184,6.44536317,1773.4,1772.9,6.4162775]
[1745513965485,5.63962283,1773.2,1772.9,6.41645254]
[1745513965651,5.63962283,1773.2,1773.0,0.52336468]
[1745513965981,11.92330905,1773.3,1773.0,0.52336468]
[1745513966183,5.63974562,1773.2,1773.1,0.52336468]
[1745513966356,6.83210997,1773.2,1773.1,0.52336468]
[1745513966566,6.83210997,1773.2,1773.0,0.52336468]
[1745513967279,6.83210997,1773.2,1772.9,0.776]
[1745513967792,12.47192218,1773.2,1772.9,0.776]
[1745513967989,6.83210997,1773.2,1772.9,0.776]
[1745513968464,6.83201464,1773.2,1773.0,0.52285767]
[1745513968788,6.83201464,1773.2,1772.9,0.776]
[1745513969685,1.19236435,1773.2,1772.9,6.41646008]
[1745513969884,6.28393712,1773.3,1773.0,0.52251308]
[1745513970090,11.92339836,1773.3,1773.0,0.52251308]
[1745513970491,5.63953517,1773.2,1773.0,0.52251308]
[1745513970677,5.63953517,1773.2,1772.9,6.41646008]
[1745513970865,11.92338326,1773.3,1772.9,6.41646008]
[1745513971312,0.8063,1773.4,1773.1,5.63975198]
[1745513971519,5.63875136,1773.5,1773.2,0.7942]
[1745513974571,6.45441488,1773.3,1772.9,5.64025029]
[1745513974888,5.63987936,1773.1,1772.8,6.46150503]
[1745513975064,5.63955176,1773.2,1772.8,6.46150503]
[1745513975270,5.6400166,1773.1,1772.9,0.52235645]
[1745513975470,6.84895343,1773.2,1772.9,0.52235645]
[1745513975678,5.6398927,1773.1,1772.8,6.46160102]
[1745513975876,12.48872006,1773.2,1772.8,6.46160102]
[1745513976104,5.63991904,1773.1,1772.8,0.8209]
[1745513976314,5.64024908,1773.0,1772.7,5.7052]
[1745513976614,5.64088897,1772.8,1772.5,0.7677]
[1745513976768,5.64088897,1772.8,1772.6,0.52252297]
[1745513977104,6.43245198,1773.0,1772.6,0.52252297]
[1745513977301,5.64062571,1772.9,1772.5,0.7677]
[1745513977509,5.64128532,1772.7,1772.3,6.41499783]
[1745513978006,5.64128532,1772.7,1772.4,0.5225595]
[1745513978208,6.99809293,1772.8,1772.4,0.5225595]
[1745513978503,5.64111598,1772.7,1772.3,6.41497249]
[1745513979108,5.64111598,1772.7,1772.3,12.0571597]
[1745513979302,6.90503687,1772.7,1772.3,6.41497249]
[1745513979606,6.90503687,1772.7,1772.4,0.52217533]
[1745513979918,5.64156686,1772.6,1772.3,0.7728]
[1745513980072,5.64183728,1772.5,1772.3,0.7728]
[1745513980275,5.64183728,1772.5,1772.2,0.8158]
[1745513980581,5.64183728,1772.5,1772.2,6.45848605]
[1745513981110,5.64183728,1772.5,1772.2,0.8158]
[1745513981405,0.56418373,1772.5,1772.2,6.45831848]
[1745513981771,0.56418373,1772.5,1772.0,0.5]
[1745513981772,5.6430224,1772.1,1772.0,0.5]
[1745513981977,9.4232224,1772.1,1772.0,0.5]
[1745513982224,11.08626597,1772.1,1772.0,0.5]
[1745513982596,11.50603893,1772.1,1772.0,0.5]
[1745513982805,11.44977458,1772.1,1772.0,0.5]
[1745513983296,0.8149,1771.9,1771.5,0.4103979]
[1745513983497,10.46124821,1771.6,1771.5,0.4103979]
[1745513983698,12.56041443,1771.6,1771.5,0.4103979]
[1745513983900,12.50415008,1771.6,1771.5,0.4103979]
[1745513986510,12.50415008,1771.6,1771.5,1e-08]
[1745513986695,11.5024169,1771.6,1771.5,1e-08]
[1745513987421,12.0524169,1771.6,1771.5,1e-08]
[1745513988189,17.38215008,1771.6,1771.5,1e-08]
[1745513992224,17.93215008,1771.6,1771.5,1e-08]
[1745513992395,5.64748404,1770.7,1770.6,0.7666]
[1745513992597,5.64719851,1770.8,1770.6,0.7666]
[1745513993728,11.29463769,1770.8,1770.6,0.7666]
[1745513993929,5.64719851,1770.8,1770.6,0.7666]
[1745513994135,11.2946585,1770.8,1770.6,0.7666]
[1745513994341,5.64719851,1770.8,1770.6,0.7666]
[1745513994694,11.29461761,1770.8,1770.6,0.7666]
[1745513994890,5.64719851,1770.8,1770.6,0.7666]
[1745513995729,1.12942103,1770.8,1770.6,0.7666]
[1745513995897,5.64731725,1770.8,1770.6,0.7666]
[1745513997139,3.0,1771.1,1770.6,7.41600669]
[1745513997428,5.64701861,1770.9,1770.6,0.7666]
[1745513997634,5.64732173,1770.8,1770.6,0.7666]
[1745513998833,5.64748404,1770.7,1770.6,0.7666]
[1745513999197,5.64748404,1770.7,1770.4,0.8327]
[1745513999403,5.64784568,1770.6,1770.4,0.8327]
[1745513999627,5.64748404,1770.7,1770.4,6.48112081]
[1745514000137,5.63494404,1770.7,1770.4,6.48112081]
[1745514000351,5.64789516,1770.6,1770.4,0.8327]
[1745514000638,5.64812199,1770.5,1770.4,0.8327]
[1745514001333,5.64826618,1770.5,1770.1,0.8137]
[1745514001535,5.64826618,1770.5,1770.1,6.46289718]
[1745514002035,5.64826618,1770.5,1770.1,12.11210522]
[1745514002356,0.8132,1771.1,1770.6,0.8255]
[1745514002650,5.64791368,1770.6,1770.3,0.8255]
[1745514002952,5.64823253,1770.5,1770.3,0.8255]
[1745514003111,5.53162134,1770.6,1770.3,0.8255]
[1745514003304,5.64782359,1770.6,1770.3,0.8255]
[1745514003609,5.64782359,1770.6,1770.0,1.00173318]
[1745514003610,5.64844103,1770.4,1770.0,0.8139]
[1745514003949,6.77748215,1770.6,1770.2,5.64903067]
[1745514004131,5.64814581,1770.5,1770.2,0.8139]
[1745514004305,5.64801212,1770.6,1770.2,0.8139]
[1745514004507,5.64768338,1770.7,1770.3,0.765]
[1745514004735,5.64768338,1770.7,1770.3,1.76673318]
[1745514004927,5.64793108,1770.6,1770.3,0.765]
[1745514005436,5.64770691,1770.7,1770.3,0.765]
[1745514005742,5.64796916,1770.6,1770.3,0.765]
[1745514007007,5.64770691,1770.7,1770.3,6.41369166]
[1745514007335,5.64765298,1770.7,1770.3,7.6198602]
[1745514007506,5.64765298,1770.7,1770.4,0.52197846]
[1745514007707,6.40812265,1771.0,1770.5,6.44399038]
[1745514007939,11.29409576,1770.9,1770.6,0.52197846]
[1745514008145,5.64718562,1770.8,1770.6,0.52197846]
[1745514008444,5.64700264,1770.9,1770.6,0.52197846]
[1745514008655,5.64663709,1771.0,1770.6,6.86637118]
[1745514008946,5.64663709,1771.0,1770.7,1.33287846]
[1745514009147,5.64689409,1770.9,1770.7,1.33287846]
[1745514009310,5.64689409,1770.9,1770.7,0.8109]
[1745514009511,5.64716512,1770.8,1770.7,0.8109]
[1745514009706,5.64759079,1770.7,1770.4,0.7999]
[1745514010008,5.64789602,1770.6,1770.5,0.52400783]
[1745514012949,7.09376754,1770.6,1770.5,0.52400783]
[1745514013364,8.98256507,1770.6,1770.5,0.52400783]
[1745514013657,5.64983209,1770.0,1769.8,0.7873]
[1745514013818,5.65003672,1769.9,1769.7,0.4103979]
[1745514014240,5.65017436,1769.9,1769.7,0.4103979]
[1745514014447,5.64922138,1770.2,1769.7,0.4103979]
[1745514014607,9.50386801,1770.3,1769.9,0.783]
[1745514014811,5.64986559,1770.0,1769.7,1.1933979]
[1745514015050,5.64939833,1770.1,1769.7,1.1933979]
[1745514015215,5.64989253,1770.0,1769.7,1.1933979]
[1745514015415,5.96622317,1770.0,1769.7,1.1933979]
[1745514015640,5.96622317,1770.0,1769.7,0.4103979]
[1745514016448,5.6494162,1770.1,1769.7,0.4103979]
[1745514016449,5.64959511,1770.1,1769.7,0.4103979]
[1745514016649,5.70585946,1770.1,1769.7,0.4103979]
[1745514016848,5.64972256,1770.0,1769.7,0.4103979]
[1745514017039,13.52957857,1770.4,1769.9,0.8041]
[1745514017235,8.64857857,1770.4,1769.9,6.45386845]
[1745514017484,8.64857857,1770.4,1769.9,6.45396435]
[1745514017688,5.64903728,1770.3,1770.0,0.12615744]
[1745514017846,5.64880889,1770.3,1770.0,0.12615744]
[1745514018477,5.648585,1770.4,1770.0,0.12615744]
[1745514018675,11.29727124,1770.4,1770.0,0.12615744]
[1745514019175,5.648585,1770.4,1770.0,0.12615744]
[1745514019481,8.64834477,1770.5,1770.2,0.75]
[1745514019700,8.64834477,1770.5,1770.0,0.12615744]
[1745514019701,0.7828,1770.4,1770.0,0.12615744]
[1745514019845,5.64929165,1770.2,1769.7,6.87416973]
[1745514020040,5.64929165,1770.2,1769.7,12.52463422]
[1745514020239,5.64929165,1770.2,1769.7,8.12652581]
[1745514020674,5.64929165,1770.2,1769.8,5.65035412]
[1745514020841,0.31595364,1770.2,1769.8,5.65035412]
[1745514021176,0.31595364,1770.2,1769.8,5.65016826]
[1745514021362,0.31595364,1770.2,1769.9,6.45565345]
[1745514021553,0.31595364,1770.2,1769.9,2.01628217]
[1745514021753,5.64898573,1770.3,1769.9,2.01628217]
[1745514021951,6.7472144,1770.4,1769.9,7.66627804]
[1745514022179,6.80347875,1770.4,1769.9,7.66627804]
[1745514022391,5.64878548,1770.3,1769.9,0.8057]
[1745514022686,5.64984604,1770.0,1769.7,1.2080979]
[1745514023206,5.64987923,1770.0,1769.7,1.2080979]
[1745514023362,5.70616206,1770.0,1769.7,1.2080979]
[1745514023565,5.64989771,1770.0,1769.7,1.2080979]
[1745514023764,6.85560458,1770.0,1769.7,1.2080979]
[1745514024175,5.65008073,1769.9,1769.7,1.2080979]
[1745514024363,5.65008073,1769.9,1769.7,0.4103979]
[1745514024702,1.20570687,1770.0,1769.7,0.4103979]
[1745514025006,6.855552,1770.0,1769.7,0.4103979]
[1745514025555,5.65013705,1769.9,1769.7,0.4103979]
[1745514025792,6.85560226,1770.0,1769.7,0.4103979]
[1745514026604,5.65005689,1769.9,1769.7,0.4103979]
[1745514026783,6.33561712,1769.9,1769.7,0.4103979]
[1745514027987,5.65035597,1769.8,1769.7,0.4103979]
[1745514028196,6.33561712,1769.9,1769.7,0.4103979]
[1745514028394,5.65035597,1769.8,1769.7,0.4103979]
[1745514028714,6.90521763,1769.8,1769.7,0.4103979]
[1745514029312,1.19859731,1769.8,1769.7,0.4103979]
[1745514029607,6.33573569,1769.9,1769.7,0.4103979]
[1745514029815,0.68556023,1769.9,1769.7,0.4103979]
[1745514030006,6.02193699,1770.0,1769.8,0.12215779]
[1745514030412,0.31580951,1770.0,1769.8,0.12215779]
[1745514031089,1.00173318,1770.4,1769.8,0.12215779]
[1745514031384,1.00173318,1770.4,1769.9,0.8167]
[1745514031385,11.34139491,1770.3,1769.9,0.8167]
[1745514031582,6.40282618,1770.4,1770.0,0.1221145]
[1745514031737,7.16578904,1770.4,1770.0,0.1221145]
[1745514031933,11.6135871,1770.3,1770.0,0.1221145]
[1745514032169,5.96459055,1770.3,1770.0,0.1221145]
[1745514032661,5.64927727,1770.2,1770.0,0.1221145]
[1745514033070,5.64939833,1770.1,1770.0,0.1221145]
[1745514033276,5.64927727,1770.2,1770.0,0.1221145]
[1745514033586,6.99242606,1770.1,1770.0,0.1221145]
[1745514033734,5.6503348,1769.9,1769.7,0.4103979]
[1745514033934,5.6503348,1769.9,1769.8,0.12333096]
[1745514034367,6.46789915,1769.9,1769.8,0.12333096]
[1745514034568,5.65035597,1769.8,1769.7,0.4103979]
[1745514034850,6.91844583,1769.8,1769.7,0.4103979]
[1745514035155,6.91844583,1769.8,1769.7,0.53375051]
[1745514035385,8.23589649,1769.8,1769.7,0.53375051]
[1745514035615,9.01499649,1769.8,1769.7,0.4103979]
[1745514036746,9.01499649,1769.8,1769.7,0.53375461]
[1745514038183,9.01499649,1769.8,1769.7,0.4103979]
[1745514038381,9.01499649,1769.8,1769.7,0.53375461]
[1745514038691,9.01499649,1769.8,1769.7,0.4103979]
[1745514039067,9.01499649,1769.8,1769.7,0.53375461]
[1745514039578,9.01499649,1769.8,1769.7,0.4103979]
[1745514040676,12.01499649,1769.8,1769.7,0.4103979]
[1745514040874,11.95873214,1769.8,1769.7,0.4103979]
[1745514045766,11.95873214,1769.8,1769.7,0.53906408]
[1745514045973,11.95873214,1769.8,1769.7,0.4103979]
[1745514049658,5.65227221,1769.2,1769.1,1.2917]
[1745514049858,5.65203461,1769.3,1769.1,1.2917]
[1745514050059,5.6517552,1769.4,1769.1,1.42200583]
[1745514050260,5.65195374,1769.3,1769.1,1.42200583]
[1745514050995,11.3041365,1769.3,1769.1,1.42200583]
[1745514051198,5.70853656,1769.2,1769.1,0.63030583]
[1745514051495,7.53186974,1769.2,1769.1,0.5]
[1745514051789,7.53186974,1769.2,1769.1,0.62296333]
[1745514052205,7.84757917,1769.2,1769.1,0.62296333]
[1745514053057,7.84757917,1769.2,1769.1,0.5]
[1745514053287,12.31057383,1769.2,1769.1,0.62300031]
[1745514053597,12.25430948,1769.2,1769.1,0.5]
[1745514053910,11.43270948,1769.2,1769.1,0.62301263]
[1745514054209,15.3139763,1769.2,1769.1,0.62301263]
[1745514057487,16.1133763,1769.2,1769.1,0.62301263]
[1745514057879,16.1133763,1769.2,1769.1,0.5]
[1745514058084,16.1133763,1769.2,1769.1,0.62408984]
[1745514058285,16.1133763,1769.2,1769.1,0.5]
[1745514058485,16.1133763,1769.2,1769.1,0.62420572]
[1745514058865,15.3139763,1769.2,1769.1,0.5]
[1745514059072,15.3139763,1769.2,1769.1,0.62420572]
[1745514059270,15.3139763,1769.2,1769.1,0.5]
[1745514059471,4.77870409,1769.2,1769.1,0.62420572]
[1745514059673,0.31570943,1769.2,1769.1,0.62420572]
[1745514060220,7.6613391,1769.7,1769.2,0.7599]
[1745514060221,1.19587321,1769.7,1769.2,0.7599]
[1745514060508,6.90283364,1769.7,1769.4,0.8059]
[1745514060815,5.65112241,1769.6,1769.5,0.12319876]
[1745514060970,6.75715781,1769.6,1769.5,0.12319876]
[1745514061303,6.75702997,1769.6,1769.5,0.12319876]
[1745514061600,6.75702997,1769.6,1769.3,0.8059]
[1745514061601,5.65148008,1769.5,1769.3,0.8059]
[1745514061771,5.65198687,1769.3,1769.1,1.2961]
[1745514061973,5.65148309,1769.5,1769.1,6.94862802]
[1745514062177,6.32723494,1769.5,1769.1,6.94862802]
[1745514062607,6.38353757,1769.5,1769.2,0.7961]
[1745514062788,5.65220507,1769.3,1769.1,1.2961]
[1745514063211,11.30444822,1769.3,1769.1,1.2961]
[1745514063418,6.78827633,1769.3,1769.1,1.2961]
[1745514063582,5.65180746,1769.4,1769.1,1.2961]
[1745514063983,10.59107181,1769.4,1769.1,1.2961]
[1745514064405,0.31617893,1769.3,1769.1,1.2961]
[1745514065315,5.65227221,1769.2,1769.1,1.2961]
[1745514065485,0.31617893,1769.3,1769.1,1.2961]
[1745514065907,0.31617893,1769.3,1769.1,6.9485228]
[1745514066221,0.31617893,1769.3,1769.1,8.20865987]
[1745514066417,0.31617893,1769.3,1769.1,2.55623707]
[1745514066617,0.31617893,1769.3,1769.2,0.7521]
[1745514067122,5.96785733,1769.4,1769.2,0.7521]
[1745514067314,0.31617893,1769.4,1769.2,0.7521]
[1745514069587,0.31617893,1769.5,1769.2,0.7521]
[1745514069785,0.31617893,1769.5,1769.2,0.70596097]
[1745514070321,5.9676213,1769.5,1769.2,0.70596097]
[1745514070727,0.31617893,1769.5,1769.4,5.65163332]
[1745514070893,0.31617893,1769.5,1769.4,5.7081469]
[1745514071092,0.31617893,1769.5,1769.4,5.65163332]
[1745514071626,0.31617893,1769.9,1769.5,5.65108108]
[1745514071990,5.96622607,1769.9,1769.5,5.65108108]
[1745514072223,5.96622607,1769.9,1769.4,5.65163332]
[1745514072430,5.96622607,1769.9,1769.4,12.43339948]